[Event "*** Titled Tuesday Blitz"]
[Site "Chess.com"]
[Date "2020.04.14"]
[Round "5"]
[White "jonaszmb"]
[Black "Ziyamammadov"]
[Result "1-0"]
[WhiteElo "2416"]
[BlackElo "1796"]
[TimeControl "180+1"]
[EndTime "10:51:27 PDT"]
[Termination "jonaszmb won by resignation"]

1. d4 {[%clk 0:03:00.9]} 1... Nf6 {[%clk 0:02:59.4]} 2. c4 {[%clk 0:03:01]} 2...
d6 {[%clk 0:02:59.8]} 3. Nf3 {[%clk 0:03:01.1]} 3... g6 {[%clk 0:03:00.3]} 4. g3
{[%clk 0:03:01.1]} 4... Bg7 {[%clk 0:03:00.6]} 5. Bg2 {[%clk 0:03:01.4]} 5...
O-O {[%clk 0:03:01]} 6. O-O {[%clk 0:03:01.8]} 6... Nbd7 {[%clk 0:02:59.5]} 7.
Qc2 {[%clk 0:03:01.5]} 7... c5 {[%clk 0:02:57.6]} 8. Rd1 {[%clk 0:02:59]} 8...
cxd4 {[%clk 0:02:55.3]} 9. Nxd4 {[%clk 0:02:59.9]} 9... a5 {[%clk 0:02:53.1]}
10. Nc3 {[%clk 0:02:58.4]} 10... Nc5 {[%clk 0:02:52.8]} 11. b3 {[%clk 0:02:49]}
11... Qb6 {[%clk 0:02:38.4]} 12. Bb2 {[%clk 0:02:44.2]} 12... Ng4 {[%clk
0:02:23.8]} 13. Ncb5 {[%clk 0:02:33.3]} 13... Bd7 {[%clk 0:01:45.2]} 14. e4
{[%clk 0:02:27.6]} 14... Bc6 {[%clk 0:01:29.8]} 15. Nxc6 {[%clk 0:02:18.3]}
15... bxc6 {[%clk 0:01:11.4]} 16. Bxg7 {[%clk 0:02:17.8]} 16... Kxg7 {[%clk
0:01:11.4]} 17. Nd4 {[%clk 0:02:13.5]} 17... Rad8 {[%clk 0:01:04]} 18. h3 {[%clk
0:02:04.6]} 18... Nf6 {[%clk 0:01:01.5]} 19. e5 {[%clk 0:01:49.2]} 19... dxe5
{[%clk 0:00:32.7]} 20. Nxc6 {[%clk 0:01:49.3]} 20... Rxd1+ {[%clk 0:00:29.5]}
21. Rxd1 {[%clk 0:01:50.2]} 21... Re8 {[%clk 0:00:29.3]} 22. Nxe5 {[%clk
0:01:47.9]} 22... Ne6 {[%clk 0:00:28.6]} 23. Qc3 {[%clk 0:01:42]} 23... Rd8
{[%clk 0:00:25.7]} 24. Rxd8 {[%clk 0:01:41]} 24... Qxd8 {[%clk 0:00:24.8]} 25.
Nc6 {[%clk 0:01:31.9]} 25... Qc7 {[%clk 0:00:24]} 26. Qe5 {[%clk 0:01:28.5]}
26... Qd7 {[%clk 0:00:20.1]} 27. Kh2 {[%clk 0:01:22.4]} 27... Qb7 {[%clk
0:00:14.3]} 28. Nd8 {[%clk 0:01:15.8]} 28... Qb6 {[%clk 0:00:10.6]} 29. Nxe6+
{[%clk 0:01:15]} 29... fxe6 {[%clk 0:00:10]} 30. c5 {[%clk 0:01:15.1]} 30... Qd8
{[%clk 0:00:08.3]} 31. c6 {[%clk 0:01:11.9]} 31... Kf7 {[%clk 0:00:08.5]} 32. c7
{[%clk 0:01:11.8]} 32... Qc8 {[%clk 0:00:08.8]} 33. Bc6 {[%clk 0:01:05.3]} 33...
Nd7 {[%clk 0:00:09.7]} 34. Bxd7 {[%clk 0:00:59.4]} 34... Qxd7 {[%clk 0:00:10.6]}
35. Qc5 {[%clk 0:00:59]} 35... Qc8 {[%clk 0:00:09.4]} 36. Qxa5 {[%clk
0:00:59.3]} 36... Ke8 {[%clk 0:00:05.5]} 37. Qc5 {[%clk 0:00:58.5]} 37... Kd7
{[%clk 0:00:04.4]} 38. a4 {[%clk 0:00:58.5]} 38... Qb7 {[%clk 0:00:03.9]} 39.
c8=Q+ {[%clk 0:00:57.5]} 39... Qxc8 {[%clk 0:00:03.7]} 40. Qxc8+ {[%clk
0:00:58.4]} 40... Kxc8 {[%clk 0:00:04.6]} 41. Kg2 {[%clk 0:00:59.1]} 41... Kb7
{[%clk 0:00:03.3]} 42. Kf3 {[%clk 0:00:59.5]} 42... Kc6 {[%clk 0:00:03.7]} 43.
Ke4 {[%clk 0:00:59.3]} 43... Kc5 {[%clk 0:00:04.1]} 44. Ke5 {[%clk 0:00:59.8]}
44... Kb4 {[%clk 0:00:04.1]} 45. Kxe6 {[%clk 0:01:00.2]} 45... Kxb3 {[%clk
0:00:05]} 46. a5 {[%clk 0:01:00.6]} 46... Ka4 {[%clk 0:00:05.9]} 47. a6 {[%clk
0:01:00.5]} 47... Kb4 {[%clk 0:00:05.6]} 48. a7 {[%clk 0:01:01.4]} 48... Kc5
{[%clk 0:00:05.2]} 49. a8=Q {[%clk 0:01:02.3]} 49... Kd4 {[%clk 0:00:05.4]} 50.
Qd8+ {[%clk 0:01:02.1]} 50... Kc4 {[%clk 0:00:05.3]} 51. Qxe7 {[%clk 0:01:03]}
51... Kc3 {[%clk 0:00:05.3]} 52. Qxh7 {[%clk 0:01:03.5]} 52... Kd2 {[%clk
0:00:04.7]} 53. Qxg6 {[%clk 0:01:04.4]} 53... Ke2 {[%clk 0:00:05.1]} 54. Qf5
{[%clk 0:01:05.1]} 54... Kf1 {[%clk 0:00:05.1]} 55. h4 {[%clk 0:01:06]} 55...
Kg1 {[%clk 0:00:05.5]} 56. h5 {[%clk 0:01:06.9]} 56... Kh2 {[%clk 0:00:05.9]}
57. h6 {[%clk 0:01:07.8]} 57... Kg2 {[%clk 0:00:06.4]} 58. h7 {[%clk 0:01:08.7]}
58... Kf1 {[%clk 0:00:07.1]} 59. g4 {[%clk 0:01:08.3]} 59... Kg1 {[%clk
0:00:07.7]} 60. g5 {[%clk 0:01:09.2]} 60... Kh1 {[%clk 0:00:07.8]} 61. g6 {[%clk
0:01:10.1]} 61... Kg1 {[%clk 0:00:08.4]} 62. g7 {[%clk 0:01:11]} 62... Kf1
{[%clk 0:00:08.3]} 63. Qc2 {[%clk 0:01:10.8]} 63... Kg1 {[%clk 0:00:08.4]} 64.
f4 {[%clk 0:01:11.3]} 64... Kh1 {[%clk 0:00:08.3]} 65. f5 {[%clk 0:01:12.2]}
65... Kg1 {[%clk 0:00:08.7]} 66. f6 {[%clk 0:01:13.1]} 66... Kf1 {[%clk
0:00:08.6]} 67. f7 {[%clk 0:01:14]} 67... Ke1 {[%clk 0:00:09.1]} 68. Ke7 {[%clk
0:01:12.4]} 68... Kf1 {[%clk 0:00:08.7]} 69. f8=R+ {[%clk 0:01:10.9]} 69... Ke1
{[%clk 0:00:08.9]} 70. Rd8 {[%clk 0:01:09.1]} 70... Kf1 {[%clk 0:00:08.9]} 71.
Qd2 {[%clk 0:01:09.3]} 71... Kg1 {[%clk 0:00:08.7]} 1-0

[Event "*** Titled Tuesday Blitz"]
[Site "Chess.com"]
[Date "2020.04.14"]
[Round "5"]
[White "kreonx"]
[Black "Medvezhlo"]
[Result "0-1"]
[WhiteElo "2236"]
[BlackElo "2451"]
[TimeControl "180+1"]
[EndTime "10:51:27 PDT"]
[Termination "Medvezhlo won by resignation"]

1. e4 {[%clk 0:03:00.9]} 1... c5 {[%clk 0:02:59.8]} 2. Nc3 {[%clk 0:03:00.7]}
2... g6 {[%clk 0:03:00.1]} 3. g3 {[%clk 0:03:01.4]} 3... Bg7 {[%clk 0:03:00]} 4.
Bg2 {[%clk 0:03:01.3]} 4... Nc6 {[%clk 0:02:59.7]} 5. d3 {[%clk 0:03:01.8]} 5...
d6 {[%clk 0:02:59.2]} 6. Be3 {[%clk 0:03:02.1]} 6... Rb8 {[%clk 0:02:58.1]} 7.
Qd2 {[%clk 0:02:59.1]} 7... b5 {[%clk 0:02:58.5]} 8. f4 {[%clk 0:02:57.9]} 8...
b4 {[%clk 0:02:58.9]} 9. Nd1 {[%clk 0:02:57.7]} 9... e5 {[%clk 0:02:58]} 10. f5
{[%clk 0:02:55.8]} 10... gxf5 {[%clk 0:02:56.8]} 11. exf5 {[%clk 0:02:56]} 11...
Nd4 {[%clk 0:02:57]} 12. g4 {[%clk 0:02:34]} 12... Qh4+ {[%clk 0:02:55.8]} 13.
Nf2 {[%clk 0:02:33.1]} 13... h5 {[%clk 0:02:54.2]} 14. Bg5 {[%clk 0:02:29.6]}
14... Nxc2+ {[%clk 0:02:45.5]} 15. Kf1 {[%clk 0:02:28.9]} 15... Bh6 {[%clk
0:02:43.5]} 16. Nf3 {[%clk 0:02:14]} 16... Bxg5 {[%clk 0:02:39.7]} 17. Qxc2
{[%clk 0:02:14.1]} 17... b3 {[%clk 0:01:59.5]} 18. axb3 {[%clk 0:02:11.9]} 18...
Qxf2+ {[%clk 0:01:57.1]} 19. Kxf2 {[%clk 0:02:06.9]} 19... Bd8 {[%clk
0:01:56.6]} 20. Nxe5 {[%clk 0:01:41.6]} 20... dxe5 {[%clk 0:01:54.5]} 21. Rhe1
{[%clk 0:01:18.6]} 21... f6 {[%clk 0:01:46.7]} 22. g5 {[%clk 0:01:16]} 22...
Bxf5 {[%clk 0:01:41.9]} 23. Bc6+ {[%clk 0:01:12.9]} 23... Kf8 {[%clk 0:01:38.7]}
24. gxf6 {[%clk 0:01:11.8]} 24... Nxf6 {[%clk 0:01:34.5]} 25. Ke2 {[%clk
0:01:05.7]} 25... Bb6 {[%clk 0:01:28.6]} 26. Rf1 {[%clk 0:01:04.8]} 26... Bg4+
{[%clk 0:01:28.1]} 27. Bf3 {[%clk 0:01:04.4]} 27... Kg7 {[%clk 0:01:21.4]} 28.
Rg1 {[%clk 0:00:58.8]} 28... c4 {[%clk 0:01:10.3]} 29. h3 {[%clk 0:00:53.9]}
29... cxd3+ {[%clk 0:01:03.6]} 30. Kxd3 {[%clk 0:00:50.8]} 30... e4+ {[%clk
0:00:56.4]} 31. Bxe4 {[%clk 0:00:40.3]} 31... Rhd8+ {[%clk 0:00:53.4]} 32. Kc3
{[%clk 0:00:29.7]} 32... Rbc8+ {[%clk 0:00:53.1]} 33. Kb4 {[%clk 0:00:28.2]}
33... Rxc2 {[%clk 0:00:51.3]} 34. Bxc2 {[%clk 0:00:27.8]} 34... Bxg1 {[%clk
0:00:49.3]} 35. Rxg1 {[%clk 0:00:26.9]} 35... Rd2 {[%clk 0:00:41.3]} 36. Bf5
{[%clk 0:00:25.7]} 36... Rd4+ {[%clk 0:00:36.9]} 37. Kc3 {[%clk 0:00:22.4]}
37... Rf4 {[%clk 0:00:36.1]} 38. hxg4 {[%clk 0:00:22.3]} 38... hxg4 {[%clk
0:00:35.8]} 39. Be6 {[%clk 0:00:18.6]} 39... Re4 {[%clk 0:00:32.5]} 40. Bf5
{[%clk 0:00:17.6]} 40... Rf4 {[%clk 0:00:32.9]} 41. Be6 {[%clk 0:00:17.6]} 41...
Kg6 {[%clk 0:00:33.3]} 42. Kd3 {[%clk 0:00:14.2]} 42... Kg5 {[%clk 0:00:32.9]}
43. Ke3 {[%clk 0:00:13.5]} 43... Re4+ {[%clk 0:00:32.9]} 44. Kd3 {[%clk
0:00:12.9]} 44... Rxe6 {[%clk 0:00:33.8]} 45. Ra1 {[%clk 0:00:08.6]} 45... Re7
{[%clk 0:00:33]} 46. Ra5+ {[%clk 0:00:05.8]} 46... Kf4 {[%clk 0:00:33]} 47. Ra4+
{[%clk 0:00:03.4]} 47... Kf3 {[%clk 0:00:33.2]} 48. Ra6 {[%clk 0:00:03.9]} 48...
Nd5 {[%clk 0:00:30]} 49. Rxa7 {[%clk 0:00:02.6]} 49... Rxa7 {[%clk 0:00:29.1]}
0-1

[Event "*** Titled Tuesday Blitz"]
[Site "Chess.com"]
[Date "2020.04.14"]
[Round "5"]
[White "Bykov_Egor"]
[Black "Zavgorodniy_Serg"]
[Result "0-1"]
[WhiteElo "2558"]
[BlackElo "2729"]
[TimeControl "180+1"]
[EndTime "10:51:28 PDT"]
[Termination "Zavgorodniy_Serg won by resignation"]

1. d4 {[%clk 0:03:00.9]} 1... Nf6 {[%clk 0:02:59.5]} 2. c4 {[%clk 0:03:01.1]}
2... e6 {[%clk 0:02:59.6]} 3. Nc3 {[%clk 0:02:59.4]} 3... Bb4 {[%clk 0:02:59.9]}
4. e3 {[%clk 0:02:59.7]} 4... b6 {[%clk 0:02:59.6]} 5. Ne2 {[%clk 0:02:44.2]}
5... Ne4 {[%clk 0:02:58.6]} 6. f3 {[%clk 0:02:35.8]} 6... Nxc3 {[%clk
0:02:56.1]} 7. bxc3 {[%clk 0:02:35.9]} 7... Be7 {[%clk 0:02:56.1]} 8. Ng3 {[%clk
0:02:34.1]} 8... h5 {[%clk 0:02:55.8]} 9. Bd3 {[%clk 0:02:31.9]} 9... h4 {[%clk
0:02:55.5]} 10. Ne2 {[%clk 0:02:31.3]} 10... Ba6 {[%clk 0:02:49.5]} 11. f4
{[%clk 0:02:04.2]} 11... Nc6 {[%clk 0:02:46.8]} 12. f5 {[%clk 0:01:57.3]} 12...
Na5 {[%clk 0:02:44.4]} 13. Qa4 {[%clk 0:01:47]} 13... exf5 {[%clk 0:02:15]} 14.
O-O {[%clk 0:01:38.7]} 14... g6 {[%clk 0:02:08.4]} 15. e4 {[%clk 0:01:34]} 15...
fxe4 {[%clk 0:02:02]} 16. Bxe4 {[%clk 0:01:34.1]} 16... Bxc4 {[%clk 0:01:59.7]}
17. Bxa8 {[%clk 0:01:30]} 17... Qxa8 {[%clk 0:01:58.1]} 18. Qc2 {[%clk
0:01:27.4]} 18... h3 {[%clk 0:01:53.4]} 19. Rf2 {[%clk 0:01:24.3]} 19... hxg2
{[%clk 0:01:47.5]} 20. Bf4 {[%clk 0:01:22.8]} 20... Qc6 {[%clk 0:01:14.9]} 21.
Re1 {[%clk 0:01:21]} 21... Kd8 {[%clk 0:00:53.3]} 22. Bg3 {[%clk 0:01:01]} 22...
Kc8 {[%clk 0:00:45.3]} 23. Nf4 {[%clk 0:00:55.2]} 23... Bd6 {[%clk 0:00:44.2]}
24. Qd2 {[%clk 0:00:35.1]} 24... Kb7 {[%clk 0:00:42.3]} 25. Nxg2 {[%clk
0:00:28.6]} 25... Bxg3 {[%clk 0:00:40.7]} 26. hxg3 {[%clk 0:00:29.1]} 26... Bd5
{[%clk 0:00:38.5]} 27. Rf4 {[%clk 0:00:28.7]} 27... Nc4 {[%clk 0:00:37.3]} 28.
Qf2 {[%clk 0:00:29.3]} 28... f5 {[%clk 0:00:36.3]} 29. Rh4 {[%clk 0:00:28.9]}
29... Rxh4 {[%clk 0:00:30.8]} 30. Nxh4 {[%clk 0:00:29.8]} 30... Nd6 {[%clk
0:00:28.9]} 31. Nxg6 {[%clk 0:00:24]} 31... Qxc3 {[%clk 0:00:27.5]} 32. Nf4
{[%clk 0:00:24]} 32... Be4 {[%clk 0:00:23.3]} 33. d5 {[%clk 0:00:17.2]} 33... a5
{[%clk 0:00:22.5]} 34. Rd1 {[%clk 0:00:16.2]} 34... Nc4 {[%clk 0:00:21.4]} 35.
Kh2 {[%clk 0:00:12.4]} 35... Ne5 {[%clk 0:00:21.3]} 36. Kh3 {[%clk 0:00:10.1]}
36... Ng4 {[%clk 0:00:21]} 37. Qd4 {[%clk 0:00:09]} 37... Qc2 {[%clk 0:00:18.8]}
38. Qd2 {[%clk 0:00:08.8]} 38... Qc4 {[%clk 0:00:17.2]} 39. Qd4 {[%clk
0:00:06.8]} 39... Qc2 {[%clk 0:00:17.3]} 40. Qd2 {[%clk 0:00:06.7]} 40... Qxd1
{[%clk 0:00:17.7]} 41. Qxd1 {[%clk 0:00:06.9]} 41... Nf2+ {[%clk 0:00:18.6]} 42.
Kh4 {[%clk 0:00:07.2]} 42... Nxd1 {[%clk 0:00:18.8]} 43. Kg5 {[%clk 0:00:07.4]}
43... a4 {[%clk 0:00:18.5]} 44. Ne2 {[%clk 0:00:07.6]} 44... a3 {[%clk 0:00:18]}
45. Kf4 {[%clk 0:00:08.1]} 45... Bb1 {[%clk 0:00:18.1]} 46. g4 {[%clk
0:00:08.3]} 46... fxg4 {[%clk 0:00:17]} 0-1

[Event "*** Titled Tuesday Blitz"]
[Site "Chess.com"]
[Date "2020.04.14"]
[Round "5"]
[White "ristingho"]
[Black "LuckIsMySkill"]
[Result "0-1"]
[WhiteElo "2462"]
[BlackElo "2730"]
[TimeControl "180+1"]
[EndTime "10:51:29 PDT"]
[Termination "LuckIsMySkill won by resignation"]

1. d4 {[%clk 0:03:00.9]} 1... c5 {[%clk 0:03:00.9]} 2. d5 {[%clk 0:03:00.3]}
2... e5 {[%clk 0:03:01]} 3. e4 {[%clk 0:02:58.7]} 3... d6 {[%clk 0:03:01.4]} 4.
c4 {[%clk 0:02:57.7]} 4... Be7 {[%clk 0:03:01.7]} 5. Nc3 {[%clk 0:02:48.3]} 5...
Bg5 {[%clk 0:03:00.6]} 6. g3 {[%clk 0:02:46.4]} 6... h5 {[%clk 0:02:49.7]} 7. h4
{[%clk 0:02:37.6]} 7... Bxc1 {[%clk 0:02:49.2]} 8. Rxc1 {[%clk 0:02:36.9]} 8...
Nf6 {[%clk 0:02:48.7]} 9. Nge2 {[%clk 0:02:35.3]} 9... Bg4 {[%clk 0:02:46.9]}
10. Bg2 {[%clk 0:02:34.3]} 10... Bxe2 {[%clk 0:02:46.9]} 11. Qxe2 {[%clk
0:02:32.7]} 11... O-O {[%clk 0:02:44.9]} 12. O-O {[%clk 0:02:31.5]} 12... Nbd7
{[%clk 0:02:42.8]} 13. f4 {[%clk 0:02:30.4]} 13... exf4 {[%clk 0:02:41.2]} 14.
Rxf4 {[%clk 0:02:18.9]} 14... Ne5 {[%clk 0:02:34]} 15. Rcf1 {[%clk 0:02:17.2]}
15... Nfg4 {[%clk 0:02:33.9]} 16. b3 {[%clk 0:02:05.1]} 16... a6 {[%clk
0:02:33.8]} 17. Rf5 {[%clk 0:01:44.9]} 17... g6 {[%clk 0:02:31.3]} 18. R5f4
{[%clk 0:01:44.9]} 18... Qa5 {[%clk 0:02:29.7]} 19. Nd1 {[%clk 0:01:39.7]} 19...
b5 {[%clk 0:02:29.6]} 20. Bh3 {[%clk 0:01:30.1]} 20... bxc4 {[%clk 0:02:28]} 21.
bxc4 {[%clk 0:01:29.7]} 21... Rab8 {[%clk 0:02:26.3]} 22. Bxg4 {[%clk
0:01:29.9]} 22... Nxg4 {[%clk 0:02:20.5]} 23. Rxg4 {[%clk 0:01:21.8]} 23... hxg4
{[%clk 0:02:20.2]} 24. Qxg4 {[%clk 0:01:15.3]} 24... Qd2 {[%clk 0:02:16]} 25. h5
{[%clk 0:00:59.1]} 25... Qd4+ {[%clk 0:02:15.8]} 26. Kh1 {[%clk 0:00:51.7]}
26... Qxc4 {[%clk 0:02:07.8]} 27. Ne3 {[%clk 0:00:49.2]} 27... Qd3 {[%clk
0:02:02]} 28. hxg6 {[%clk 0:00:48.6]} 28... f5 {[%clk 0:01:40.6]} 29. exf5
{[%clk 0:00:28.4]} 29... Qxe3 {[%clk 0:01:37.7]} 30. Qh4 {[%clk 0:00:20.3]}
30... Kg7 {[%clk 0:01:27.2]} 31. f6+ {[%clk 0:00:18.8]} 31... Kxg6 {[%clk
0:01:27.3]} 32. Qg4+ {[%clk 0:00:08.7]} 32... Qg5 {[%clk 0:01:16.1]} 33. Qe4+
{[%clk 0:00:07]} 33... Kh6 {[%clk 0:01:15.9]} 34. Rf2 {[%clk 0:00:06.8]} 34...
Qxg3 {[%clk 0:00:28.1]} 35. Rh2+ {[%clk 0:00:06.5]} 35... Qxh2+ {[%clk
0:00:28.4]} 36. Kxh2 {[%clk 0:00:07.4]} 36... Rxf6 {[%clk 0:00:28.6]} 37. Qe3+
{[%clk 0:00:06.5]} 37... Kg6 {[%clk 0:00:25.2]} 38. Qg3+ {[%clk 0:00:03.8]}
38... Kf7 {[%clk 0:00:24.9]} 39. Qe3 {[%clk 0:00:02]} 39... Rh8+ {[%clk
0:00:24.5]} 40. Kg3 {[%clk 0:00:02.5]} 40... Rg8+ {[%clk 0:00:21.5]} 41. Kh3
{[%clk 0:00:02.3]} 41... a5 {[%clk 0:00:11.5]} 42. a4 {[%clk 0:00:02]} 42... Rg7
{[%clk 0:00:10.1]} 43. Qe4 {[%clk 0:00:02]} 43... Rh6+ {[%clk 0:00:09.8]} 0-1

[Event "*** Titled Tuesday Blitz"]
[Site "Chess.com"]
[Date "2020.04.14"]
[Round "5"]
[White "Mimsychess"]
[Black "artichaud"]
[Result "1-0"]
[WhiteElo "2376"]
[BlackElo "2210"]
[TimeControl "180+1"]
[EndTime "10:51:29 PDT"]
[Termination "Mimsychess won by resignation"]

1. Nf3 {[%clk 0:02:49.9]} 1... g6 {[%clk 0:02:59.1]} 2. c4 {[%clk 0:02:48.5]}
2... Bg7 {[%clk 0:02:58.2]} 3. Nc3 {[%clk 0:02:47]} 3... f5 {[%clk 0:02:57.7]}
4. d3 {[%clk 0:02:44.3]} 4... Nf6 {[%clk 0:02:57.1]} 5. e4 {[%clk 0:02:43.4]}
5... d6 {[%clk 0:02:56.5]} 6. Be2 {[%clk 0:02:39]} 6... Nc6 {[%clk 0:02:55]} 7.
O-O {[%clk 0:02:39]} 7... O-O {[%clk 0:02:53.7]} 8. exf5 {[%clk 0:02:29.2]} 8...
gxf5 {[%clk 0:02:43]} 9. d4 {[%clk 0:02:28.3]} 9... e5 {[%clk 0:02:42.9]} 10.
dxe5 {[%clk 0:02:28.4]} 10... dxe5 {[%clk 0:02:42.5]} 11. Qxd8 {[%clk
0:02:27.2]} 11... Rxd8 {[%clk 0:02:36.9]} 12. Bg5 {[%clk 0:02:27.6]} 12... Be6
{[%clk 0:02:35.3]} 13. Nd5 {[%clk 0:02:23.4]} 13... Bxd5 {[%clk 0:02:24]} 14.
cxd5 {[%clk 0:02:22.5]} 14... Nd4 {[%clk 0:02:04.1]} 15. Nxd4 {[%clk 0:02:21.5]}
15... exd4 {[%clk 0:02:05]} 16. Rfd1 {[%clk 0:02:07.4]} 16... h6 {[%clk
0:01:59.5]} 17. Bh4 {[%clk 0:02:05]} 17... Kh7 {[%clk 0:01:44.2]} 18. Rac1
{[%clk 0:01:46.9]} 18... Rac8 {[%clk 0:01:42.6]} 19. Bf3 {[%clk 0:01:38.8]}
19... c5 {[%clk 0:01:22]} 20. dxc6 {[%clk 0:01:35.4]} 20... bxc6 {[%clk
0:01:21.9]} 21. Rxc6 {[%clk 0:01:30.9]} 21... Rxc6 {[%clk 0:01:20.1]} 22. Bxc6
{[%clk 0:01:31.8]} 22... d3 {[%clk 0:01:16.6]} 23. Rd2 {[%clk 0:01:18.1]} 23...
Rd6 {[%clk 0:01:14.8]} 24. Bb5 {[%clk 0:01:07.8]} 24... Ne4 {[%clk 0:01:12.1]}
25. Rxd3 {[%clk 0:01:05.6]} 25... Rxd3 {[%clk 0:01:11.3]} 26. Bxd3 {[%clk
0:01:06.5]} 26... Bxb2 {[%clk 0:01:11.1]} 27. f3 {[%clk 0:01:00.5]} 27... Bd4+
{[%clk 0:01:08]} 28. Kf1 {[%clk 0:01:00.6]} 28... Nd6 {[%clk 0:01:03]} 29. Be7
{[%clk 0:01:00.3]} 29... Bc5 {[%clk 0:00:57.4]} 30. g4 {[%clk 0:00:49.9]} 30...
Kg7 {[%clk 0:00:54.2]} 31. gxf5 {[%clk 0:00:39.2]} 31... Nb7 {[%clk 0:00:42]}
32. f6+ {[%clk 0:00:39]} 32... Kf7 {[%clk 0:00:41.4]} 33. Bc4+ {[%clk
0:00:35.7]} 33... Ke8 {[%clk 0:00:41.6]} 34. Bxc5 {[%clk 0:00:19]} 34... Nxc5
{[%clk 0:00:42.5]} 35. Kf2 {[%clk 0:00:19.3]} 35... Kf8 {[%clk 0:00:33]} 36. Ke3
{[%clk 0:00:17.8]} 36... Nd7 {[%clk 0:00:32.6]} 37. f7 {[%clk 0:00:17.8]} 37...
Ke7 {[%clk 0:00:32.3]} 38. Kd4 {[%clk 0:00:16.9]} 38... Nf8 {[%clk 0:00:19.2]}
39. Ke5 {[%clk 0:00:14.1]} 39... Nd7+ {[%clk 0:00:15.5]} 40. Kf5 {[%clk
0:00:13.9]} 40... a5 {[%clk 0:00:14.5]} 41. Kg6 {[%clk 0:00:11.7]} 41... Ne5+
{[%clk 0:00:14.3]} 42. Kg7 {[%clk 0:00:11.8]} 42... Nd7 {[%clk 0:00:14.1]} 43.
Bd5 {[%clk 0:00:10.5]} 43... h5 {[%clk 0:00:12.6]} 44. f4 {[%clk 0:00:10.6]}
44... h4 {[%clk 0:00:12.2]} 45. f5 {[%clk 0:00:11]} 45... Kd6 {[%clk 0:00:08.2]}
46. f8=Q+ {[%clk 0:00:10.1]} 46... Nxf8 {[%clk 0:00:07.4]} 47. Kxf8 {[%clk
0:00:11]} 47... Kxd5 {[%clk 0:00:07.8]} 48. Ke7 {[%clk 0:00:11]} 1-0

[Event "*** Titled Tuesday Blitz"]
[Site "Chess.com"]
[Date "2020.04.14"]
[Round "5"]
[White "adriangschnitzer"]
[Black "garfield_pg"]
[Result "0-1"]
[WhiteElo "2361"]
[BlackElo "2202"]
[TimeControl "180+1"]
[EndTime "10:51:29 PDT"]
[Termination "garfield_pg won by checkmate"]

1. c4 {[%clk 0:03:00.9]} 1... g6 {[%clk 0:02:59.5]} 2. e4 {[%clk 0:03:00.3]}
2... Bg7 {[%clk 0:03:00.4]} 3. d4 {[%clk 0:02:58.7]} 3... c5 {[%clk 0:02:59.1]}
4. Nf3 {[%clk 0:02:58]} 4... cxd4 {[%clk 0:02:58.7]} 5. Nxd4 {[%clk 0:02:58.9]}
5... Nc6 {[%clk 0:02:59.2]} 6. Be3 {[%clk 0:02:58.4]} 6... Nf6 {[%clk
0:02:59.5]} 7. Nc3 {[%clk 0:02:58.2]} 7... O-O {[%clk 0:02:59.5]} 8. Be2 {[%clk
0:02:58.2]} 8... d6 {[%clk 0:02:59.8]} 9. O-O {[%clk 0:02:58.3]} 9... Bd7 {[%clk
0:03:00.3]} 10. h3 {[%clk 0:02:58.6]} 10... a5 {[%clk 0:02:59.3]} 11. Qc2 {[%clk
0:02:58]} 11... a4 {[%clk 0:02:59.6]} 12. Rad1 {[%clk 0:02:55.3]} 12... Qa5
{[%clk 0:02:59.6]} 13. f4 {[%clk 0:02:50.1]} 13... Rfc8 {[%clk 0:02:56.9]} 14.
Ndb5 {[%clk 0:02:27.9]} 14... Nb4 {[%clk 0:02:53.4]} 15. Qb1 {[%clk 0:02:23]}
15... Bc6 {[%clk 0:02:42.7]} 16. a3 {[%clk 0:02:19.6]} 16... Na6 {[%clk
0:02:42.6]} 17. Nd5 {[%clk 0:02:12.1]} 17... Bxd5 {[%clk 0:02:37.9]} 18. exd5
{[%clk 0:02:13]} 18... Nc5 {[%clk 0:02:33.6]} 19. f5 {[%clk 0:02:05.6]} 19...
Nb3 {[%clk 0:02:15.1]} 20. g4 {[%clk 0:01:58.6]} 20... Qd8 {[%clk 0:01:59.7]}
21. g5 {[%clk 0:01:55.4]} 21... Nd7 {[%clk 0:01:56.1]} 22. h4 {[%clk 0:01:48.4]}
22... Ne5 {[%clk 0:01:55.1]} 23. Qe4 {[%clk 0:01:45.1]} 23... Qd7 {[%clk
0:01:39.2]} 24. h5 {[%clk 0:01:34.3]} 24... gxf5 {[%clk 0:01:38.7]} 25. Rxf5
{[%clk 0:01:17.5]} 25... Nxc4 {[%clk 0:01:38.4]} 26. Rdf1 {[%clk 0:01:06.1]}
26... Nbd2 {[%clk 0:01:32.5]} 27. Bxd2 {[%clk 0:00:49.2]} 27... Nxd2 {[%clk
0:01:33.4]} 28. Qf4 {[%clk 0:00:39.4]} 28... Nxf1 {[%clk 0:01:32.1]} 29. Rxf7
{[%clk 0:00:32.1]} 29... Ng3 {[%clk 0:01:17.2]} 30. Bd3 {[%clk 0:00:30.9]} 30...
Nxh5 {[%clk 0:01:07.4]} 31. Qf3 {[%clk 0:00:16.4]} 31... Rf8 {[%clk 0:00:14.1]}
32. Bxh7+ {[%clk 0:00:06.3]} 32... Kxh7 {[%clk 0:00:08.3]} 33. Qxh5+ {[%clk
0:00:06.8]} 33... Kg8 {[%clk 0:00:08.6]} 34. Rxg7+ {[%clk 0:00:06.8]} 34... Kxg7
{[%clk 0:00:09]} 35. Nd4 {[%clk 0:00:05.2]} 35... e5 {[%clk 0:00:08]} 36. Ne6+
{[%clk 0:00:04.8]} 36... Kg8 {[%clk 0:00:06.5]} 37. Qg6+ {[%clk 0:00:02.6]}
37... Kh8 {[%clk 0:00:06.7]} 38. Qh6+ {[%clk 0:00:02.9]} 38... Qh7 {[%clk
0:00:06.5]} 39. Nc7 {[%clk 0:00:02.5]} 39... Qxh6 {[%clk 0:00:06.3]} 40. gxh6
{[%clk 0:00:03.4]} 40... Rg8+ {[%clk 0:00:06.8]} 41. Kf2 {[%clk 0:00:02.5]}
41... Rac8 {[%clk 0:00:07.7]} 42. Ne6 {[%clk 0:00:02.4]} 42... Rc2+ {[%clk
0:00:08.3]} 43. Ke3 {[%clk 0:00:03]} 43... Rxb2 {[%clk 0:00:08.9]} 44. Nf8
{[%clk 0:00:03.4]} 44... Rb3+ {[%clk 0:00:09.8]} 45. Ke4 {[%clk 0:00:03.3]}
45... Rxf8 {[%clk 0:00:10.7]} 46. h7 {[%clk 0:00:02.8]} 46... Rf4# {[%clk
0:00:10.7]} 0-1